Workbook

Sheet 六月报表科目汇总表
A1: 六月报表科目汇总表
A2: 科目名称 | B2: 借方 | C2: 贷方 | D2: 余额 | E2: 现金流出 | F2: 现金流入
A3: 现金 | B3: 2000 | C3: 0 | D3: 2000 | E3: 0 | F3: 0
A4: 银行存款 | B4: 16000 | C4: 12000 | D4: 4000 | E4: 0 | F4: 0
A5: 应收账款 | B5: 2000 | C5: 0 | D5: 2000 | E5: 0 | F5: 7000
A6: 应收票据 | B6: 3000 | C6: 0 | D6: 3000 | E6: 0 | F6: 0
A7: 坏账准备 | B7: 4000 | C7: 0 | D7: 4000 | E7: 0 | F7: 0
A8: 其他应收款 | B8: 1600 | C8: 0 | D8: 1600 | E8: 0 | F8: 0
A9: 预付账款 | B9: 2000 | C9: 3000 | D9: 1000 | E9: 0 | F9: 0
A10: 待摊费用 | B10: 0 | C10: 600 | D10: 600 | E10: 0 | F10: 0
A11: 固定资产 | B11: 0 | C11: 5000 | D11: 5000 | E11: 0 | F11: 0
A12: 累计折旧 | B12: 0 | C12: 600 | D12: 600 | E12: 0 | F12: 0
A13: 其他无形资产 | B13: 0 | C13: 5000 | D13: 5000 | E13: 0 | F13: 0
A14: 应付票据 | B14: 0 | C14: 500 | D14: 500 | E14: 0 | F14: 0
A15: 应付账款 | B15: 0 | C15: 600 | D15: 600 | E15: 0 | F15: 0
A16: 应付工资 | B16: 0 | C16: 15000 | D16: 15000 | E16: 0 | F16: 0
A17: 应交税金 | B17: 0 | C17: 550 | D17: 550 | E17: 0 | F17: 0
A18: 资本公积 | B18: 0 | C18: 300 | D18: 300 | E18: 0 | F18: 0
A19: 本年利润 | B19: 0 | C19: 20000 | D19: 20000 | E19: 0 | F19: 0
A20: 未分配利润 | B20: 0 | C20: 500 | D20: 500 | E20: 0 | F20: 0
A21: 营业收入 | B21: 25130 | C21: 25130 | D21: 0 | E21: 0 | F21: 0
A22: 收入结转 | B22: 25130 | C22: 0 | D22: -25130 | E22: 0 | F22: 0
A23: 营业税金 | B23: 1854 | C23: 1854 | D23: 0 | E23: 0 | F23: 0
A24: 营业成本 | B24: 20870 | C24: 20870 | D24: 0 | E24: 0 | F24: 0

Sheet 五月资产负债表
A1: 资 产 负 债 表
G2: 会商001
A3: 编制单位：重庆***有限责任公司 | C3: 2007-5-31 | G3: 单位：元
A4: 资产 | B4: 行次 | C4: 年初数 | D4: 期末数 | E4: 负债及所有者权益 | F4: 行次 | G4: 年初数 | H4: 期末数
A5: 流动资产 | E5: 流动负债
A6: 现金 | B6: 1 | C6: 6000 | D6: 4000 | E6: 短期借款 | F6: 32
A7: 备用金 | B7: 2 | E7: 应付票据 | F7: 33 | G7: 3500 | H7: 3000
A8: 银行存款 | B8: 3 | C8: 10000 | D8: 8000 | E8: 应付账款 | F8: 34 | G8: 9000 | H8: 10000
A9: 有价证券 | B9: 4 | E9: 内部往来 | F9: 35
A10: 应收票据 | B10: 5 | C10: 2000 | D10: 5000 | E10: 应付工资 | F10: 36 | G10: 10000 | H10: 8800
A11: 应收账款 | B11: 6 | C11: 3000 | D11: 2500 | E11: 应交税金 | F11: 37 | G11: 600 | H11: 500
A12: 坏账准备 | B12: 7 | C12: 1000 | D12: 2560 | E12: 应付股利 | F12: 38
A13: 预付账款 | B13: 8 | C13: 1560 | D13: 3210 | E13: 预收货款 | F13: 39
A14: 内部往来 | B14: 9 | E14: 其他应付款 | F14: 40
A15: 其他应收款 | B15: 10 | C15: 2400 | D15: 1200 | E15: 预提费用 | F15: 41
A16: 待摊费用 | B16: 11 | C16: 1000 | D16: 1200 | E16: 职工奖励及福利基金 | F16: 42 | G16: 2000 | H16: 1500
A17: 存货 | B17: 12 | E17: 一年到期的长期负债 | F17: 43
A18: 减：存货变现损失准备 | B18: 13 | E18: 其他流动负债
A19: 已转未完工生产成本 | B19: 14 | E19: 流动负债合计 | G19: =SUM(G5:G18) -> 25100 | H19: =SUM(H5:H18) -> 23800
A20: 一年内到期的长期投资 | B20: 15 | E20: 长期负债
A21: 流动资产合计 | C21: =SUM(C5:C20) -> 26960 | D21: =SUM(D5:D20) -> 27670 | E21: 长期借款 | F21: 44 | G21: 1000 | H21: 1500
A22: 长期投资 | E22: 应付公司债 | F22: 45
A23: 长期投资 | B23: 16 | E23: 应付公司债溢价或折价 | F23: 46
A24: 拨付所属资金 | B24: 17 | E24: 一年以上的应付款项
A25: 一年以上的应收款项 | B25: 18 | E25: 长期负债合计 | G25: 1000 | H25: 1500
A26: 长期投资合计 | E26: 其他负债：
A27: 固定资产 | E27: 筹建期间汇兑收益 | F27: 47
A28: 固定资产原价 | B28: 19 | C28: 6000 | D28: 4500 | E28: 递延投资收益 | F28: 48
A29: 减：累计折旧 | B29: 20 | C29: 1500 | D29: 2000 | E29: 递延税款贷方 | F29: 49
A30: 固定资产净值 | C30: 4500 | D30: 2500 | E30: 其他递延贷方 | F30: 50
A31: 固定资产清理 | E31: 待转销汇兑收益 | F31: 51
A32: 融资租入固定资产原价 | E32: 其他负债合计
A33: 减：融资租入固定资产折旧 | E33: 负债合计 | G33: 26100 | H33: 25300
A34: 融资租入固定资产净值 | E34: 所有者权益
A35: 固定资产合计 | C35: 4500 | D35: 2500 | E35: 资本总额
A36: 在建工程 | B36: 21 | E36: 实收资本 | F36: 52 | G36: 3000 | H36: 2890
A37: 在建工程合计 | E37: 中方
A38: 无形资产 | E38: 外方
A39: 场地使用权 | B39: 22 | C39: 2000 | D39: 2100 | E39: 减：已归还投资
A40: 工业产权及专有技术 | B40: 23 | E40: 资本公积 | F40: 53
A41: 其他无形资产 | B41: 24 | C41: 3000 | D41: 3200 | E41: 公司拨入资金 | F41: 54
A42: 无形资产合计 | C42: 5000 | D42: 5300 | E42: 储备基金 | F42: 55
A43: 其他资产 | E43: 企业发展基金 | F43: 56
A44: 开办费 | B44: 25 | E44: 利润归还投资 | F44: 57
A45: 筹建期间汇兑损失 | B45: 26 | E45: 本年利润 | F45: 58 | G45: =G52-G46-G36-G33 -> 7160 | H45: =H48-H36-H46 -> 7130
A46: 递延投资损失 | B46: 27 | E46: 未分配利润 | F46: 59 | G46: 200 | H46: 150
A47: 递延税款借项 | B47: 28 | E47: 货币换算差额
A48: 其他递延支出 | B48: 29 | E48: 所有者权益合计 | G48: =SUM(G35:G47) -> 10360 | H48: =H52-H33 -> 10170
A49: 待转销汇兑损益 | B49: 30
A50: 其他递延借项 | B50: 31
A51: 其他资产合计
A52: 资产总计 | C52: =C21+C35+C42 -> 36460 | D52: =D21+D35+D42 -> 35470 | E52: 负债及所有者权益合计 | G52: 36460 | H52: 35470

Sheet 六月资产负债表
A1: 资 产 负 债 表
G2: 会商001
A3: 编制单位：重庆***有限责任公司 | C3: 2007-6-30 | G3: 单位：元
A4: 资产 | B4: 行次 | C4: 期初数 | D4: 期末数 | E4: 负债及所有者权益 | F4: 行次 | G4: 期初数 | H4: 期末数
A5: 流动资产 | E5: 流动负债
A6: 现金 | B6: 1 | C6: =五月资产负债表!D6 -> 4000 | D6: =六月报表科目汇总表!D3 -> 2000 | E6: 短期借款 | F6: 32 | G6: =五月资产负债表!H6 -> 0
A7: 备用金 | B7: 2 | C7: =五月资产负债表!D7 -> 0 | E7: 应付票据 | F7: 33 | G7: =五月资产负债表!H7 -> 3000 | H7: =六月报表科目汇总表!D14 -> 500
A8: 银行存款 | B8: 3 | C8: =五月资产负债表!D8 -> 8000 | D8: =六月报表科目汇总表!D4 -> 4000 | E8: 应付账款 | F8: 34 | G8: =五月资产负债表!H8 -> 10000 | H8: =六月报表科目汇总表!D15 -> 600
A9: 有价证券 | B9: 4 | C9: =五月资产负债表!D9 -> 0 | E9: 内部往来 | F9: 35 | G9: =五月资产负债表!H9 -> 0
A10: 应收票据 | B10: 5 | C10: =五月资产负债表!D10 -> 5000 | D10: =六月报表科目汇总表!D6 -> 3000 | E10: 应付工资 | F10: 36 | G10: =五月资产负债表!H10 -> 8800 | H10: =六月报表科目汇总表!D16 -> 15000
A11: 应收账款 | B11: 6 | C11: =五月资产负债表!D11 -> 2500 | D11: =六月报表科目汇总表!D5 -> 2000 | E11: 应交税金 | F11: 37 | G11: =五月资产负债表!H11 -> 500 | H11: =六月报表科目汇总表!D17 -> 550
A12: 坏账准备 | B12: 7 | C12: =五月资产负债表!D12 -> 2560 | D12: =六月报表科目汇总表!D7 -> 4000 | E12: 应付股利 | F12: 38 | G12: =五月资产负债表!H12 -> 0
A13: 预付账款 | B13: 8 | C13: =五月资产负债表!D13 -> 3210 | D13: =六月报表科目汇总表!D9 -> 1000 | E13: 预收货款 | F13: 39 | G13: =五月资产负债表!H13 -> 0
A14: 内部往来 | B14: 9 | C14: =五月资产负债表!D14 -> 0 | E14: 其他应付款 | F14: 40 | G14: =五月资产负债表!H14 -> 0
A15: 其他应收款 | B15: 10 | C15: =五月资产负债表!D15 -> 1200 | D15: =六月报表科目汇总表!D8 -> 1600 | E15: 预提费用 | F15: 41 | G15: =五月资产负债表!H15 -> 0
A16: 待摊费用 | B16: 11 | C16: =五月资产负债表!D16 -> 1200 | D16: =六月报表科目汇总表!D10 -> 600 | E16: 职工奖励及福利基金 | F16: 42 | G16: =五月资产负债表!H16 -> 1500
A17: 存货 | B17: 12 | C17: =五月资产负债表!D17 -> 0 | E17: 一年到期的长期负债 | F17: 43 | G17: =五月资产负债表!H17 -> 0
A18: 减：存货变现损失准备 | B18: 13 | C18: =五月资产负债表!D18 -> 0 | E18: 其他流动负债 | G18: =五月资产负债表!H18 -> 0
A19: 已转未完工生产成本 | B19: 14 | C19: =五月资产负债表!D19 -> 0 | E19: 流动负债合计 | G19: =五月资产负债表!H19 -> 23800 | H19: =SUM(H6:H18) -> 16650
A20: 一年内到期的长期投资 | B20: 15 | C20: =五月资产负债表!D20 -> 0 | E20: 长期负债 | G20: =五月资产负债表!H20 -> 0
A21: 流动资产合计 | C21: =五月资产负债表!D21 -> 27670 | D21: =SUM(D6:D20) -> 18200 | E21: 长期借款 | F21: 44 | G21: =五月资产负债表!H21 -> 1500
A22: 长期投资 | C22: =五月资产负债表!D22 -> 0 | E22: 应付公司债 | F22: 45 | G22: =五月资产负债表!H22 -> 0
A23: 长期投资 | B23: 16 | C23: =五月资产负债表!D23 -> 0 | E23: 应付公司债溢价或折价 | F23: 46 | G23: =五月资产负债表!H23 -> 0
A24: 拨付所属资金 | B24: 17 | C24: =五月资产负债表!D24 -> 0 | E24: 一年以上的应付款项 | G24: =五月资产负债表!H24 -> 0
A25: 一年以上的应收款项 | B25: 18 | C25: =五月资产负债表!D25 -> 0 | E25: 长期负债合计 | G25: =五月资产负债表!H25 -> 1500 | H25: =SUM(H21:H24) -> 0
A26: 长期投资合计 | C26: =五月资产负债表!D26 -> 0 | D26: =SUM(D23:D25) -> 0 | E26: 其他负债： | G26: =五月资产负债表!H26 -> 0
A27: 固定资产 | C27: =五月资产负债表!D27 -> 0 | E27: 筹建期间汇兑收益 | F27: 47 | G27: =五月资产负债表!H27 -> 0
A28: 固定资产原价 | B28: 19 | C28: =五月资产负债表!D28 -> 4500 | D28: =六月报表科目汇总表!D11 -> 5000 | E28: 递延投资收益 | F28: 48 | G28: =五月资产负债表!H28 -> 0
A29: 减：累计折旧 | B29: 20 | C29: =五月资产负债表!D29 -> 2000 | D29: =六月报表科目汇总表!D12 -> 600 | E29: 递延税款贷方 | F29: 49 | G29: =五月资产负债表!H29 -> 0
A30: 固定资产净值 | C30: =五月资产负债表!D30 -> 2500 | D30: =SUM(D28-D29) -> 4400 | E30: 其他递延贷方 | F30: 50 | G30: =五月资产负债表!H30 -> 0
A31: 固定资产清理 | C31: =五月资产负债表!D31 -> 0 | E31: 待转销汇兑收益 | F31: 51 | G31: =五月资产负债表!H31 -> 0
A32: 融资租入固定资产原价 | C32: =五月资产负债表!D32 -> 0 | E32: 其他负债合计 | G32: =五月资产负债表!H32 -> 0 | H32: =SUM(H27:H31) -> 0
A33: 减：融资租入固定资产折旧 | C33: =五月资产负债表!D33 -> 0 | E33: 负债合计 | G33: =五月资产负债表!H33 -> 25300 | H33: =H19+H25+H32 -> 16650
A34: 融资租入固定资产净值 | C34: =五月资产负债表!D34 -> 0 | E34: 所有者权益 | G34: =五月资产负债表!H34 -> 0
A35: 固定资产合计 | C35: =五月资产负债表!D35 -> 2500 | D35: =SUM(D30:D34) -> 4400 | E35: 资本总额 | G35: =五月资产负债表!H35 -> 0
A36: 在建工程 | B36: 21 | C36: =五月资产负债表!D36 -> 0 | E36: 实收资本 | F36: 52 | G36: =五月资产负债表!H36 -> 2890
A37: 在建工程合计 | C37: =五月资产负债表!D37 -> 0 | E37: 中方 | G37: =五月资产负债表!H37 -> 0
A38: 无形资产 | C38: =五月资产负债表!D38 -> 0 | E38: 外方 | G38: =五月资产负债表!H38 -> 0
A39: 场地使用权 | B39: 22 | C39: =五月资产负债表!D39 -> 2100 | E39: 减：已归还投资 | G39: =五月资产负债表!H39 -> 0
A40: 工业产权及专有技术 | B40: 23 | C40: =五月资产负债表!D40 -> 0 | E40: 资本公积 | F40: 53 | G40: =五月资产负债表!H40 -> 0 | H40: =六月报表科目汇总表!D18 -> 300
A41: 其他无形资产 | B41: 24 | C41: =五月资产负债表!D41 -> 3200 | D41: =六月报表科目汇总表!D13 -> 5000 | E41: 公司拨入资金 | F41: 54 | G41: =五月资产负债表!H41 -> 0
A42: 无形资产合计 | C42: =五月资产负债表!D42 -> 5300 | D42: =SUM(D39:D41) -> 5000 | E42: 储备基金 | F42: 55 | G42: =五月资产负债表!H42 -> 0
A43: 其他资产 | C43: =五月资产负债表!D43 -> 0 | D43: =SUM(D44:D50) -> 9850 | E43: 企业发展基金 | F43: 56 | G43: =五月资产负债表!H43 -> 0
A44: 开办费 | B44: 25 | C44: =五月资产负债表!D44 -> 0 | D44: =六月报表科目汇总表!D13 -> 5000 | E44: 利润归还投资 | F44: 57 | G44: =五月资产负债表!H44 -> 0
A45: 筹建期间汇兑损失 | B45: 26 | C45: =五月资产负债表!D45 -> 0 | E45: 本年利润 | F45: 58 | G45: =五月资产负债表!H45 -> 7130 | H45: =六月报表科目汇总表!D19 -> 20000
A46: 递延投资损失 | B46: 27 | C46: =五月资产负债表!D46 -> 0 | D46: 850 | E46: 未分配利润 | F46: 59 | G46: =五月资产负债表!H46 -> 150 | H46: =六月报表科目汇总表!D20 -> 500
A47: 递延税款借项 | B47: 28 | C47: =五月资产负债表!D47 -> 0 | E47: 货币换算差额 | G47: =五月资产负债表!H47 -> 0
A48: 其他递延支出 | B48: 29 | C48: =五月资产负债表!D48 -> 0 | E48: 所有者权益合计 | G48: =五月资产负债表!H48 -> 10170 | H48: =SUM(H37:H47) -> 20800
A49: 待转销汇兑损益 | B49: 30 | C49: =五月资产负债表!D49 -> 0 | G49: =五月资产负债表!H49 -> 0
A50: 其他递延借项 | B50: 31 | C50: =五月资产负债表!D50 -> 0 | D50: 4000 | G50: =五月资产负债表!H50 -> 0
A51: 其他资产合计 | C51: =五月资产负债表!D51 -> 0 | D51: =SUM(D44:D50) -> 9850 | G51: =五月资产负债表!H51 -> 0
A52: 资产总计 | C52: =五月资产负债表!D52 -> 35470 | D52: =D21+D26+D35+D42+D51 -> 37450 | E52: 负债及所有者权益合计 | G52: =五月资产负债表!H52 -> 35470 | H52: =H33+H48 -> 37450

Sheet Sheet2

Sheet Sheet3
